[Event "Open NK Rapid 2025"]
[Site "Helmond, Netherlands"]
[Date "2025.05.03"]
[Round "3.7"]
[White "Grooten, Tommy"]
[Black "Baselmans, Luuk"]
[Result "1/2-1/2"]
[TimeControl "15+5"]
[WhiteFideId "1068806"]
[BlackFideId "1051008"]
[WhiteElo "2027"]
[BlackElo "2405"]

1. Nf3 {[%clk 00:15:08]} {[%emt 00:00:01]} d5 {[%clk 00:15:06]} {[%emt
00:00:05]} 2. c4 {[%clk 00:15:12]} {[%emt 00:00:02]} d4 {[%clk 00:15:08]}
{[%emt 00:00:03]} 3. g3 {[%clk 00:15:09]} {[%emt 00:00:07]} c5 {[%clk
00:14:58]} {[%emt 00:00:15]} 4. Bg2 {[%clk 00:15:12]} {[%emt 00:00:02]} Nc6
{[%clk 00:15:01]} {[%emt 00:00:01]} 5. O-O {[%clk 00:15:14]} {[%emt 00:00:03]}
e5 {[%clk 00:14:28]} {[%emt 00:00:38]} 6. d3 {[%clk 00:15:18]} {[%emt
00:00:02]} Nf6 {[%clk 00:13:37]} {[%emt 00:00:56]} 7. e3 {[%clk 00:15:22]}
{[%emt 00:00:01]} Be7 {[%clk 00:13:32]} {[%emt 00:00:10]} 8. exd4 {[%clk
00:15:24]} {[%emt 00:00:03]} exd4 {[%clk 00:13:35]} {[%emt 00:00:02]} 9. Re1
{[%clk 00:15:24]} {[%emt 00:00:05]} O-O {[%clk 00:13:28]} {[%emt 00:00:12]} 10.
Bf4 {[%clk 00:14:31]} {[%emt 00:00:58]} Bd6 {[%clk 00:12:48]} {[%emt 00:00:45]}
11. Ne5 {[%clk 00:14:14]} {[%emt 00:00:21]} Nxe5 {[%clk 00:12:24]} {[%emt
00:00:30]} 12. Bxe5 {[%clk 00:14:17]} {[%emt 00:00:02]} Bxe5 {[%clk 00:12:17]}
{[%emt 00:00:12]} 13. Rxe5 {[%clk 00:14:19]} {[%emt 00:00:03]} Qd6 {[%clk
00:12:20]} {[%emt 00:00:02]} 14. Re1 {[%clk 00:12:59]} {[%emt 00:01:25]} Bf5
{[%clk 00:10:55]} {[%emt 00:01:30]} 15. Qc2 {[%clk 00:12:49]} {[%emt 00:00:14]}
Rae8 {[%clk 00:08:33]} {[%emt 00:02:27]} 16. Nd2 {[%clk 00:12:46]} {[%emt
00:00:09]} Qd7 {[%clk 00:08:18]} {[%emt 00:00:20]} 17. a3 {[%clk 00:12:04]}
{[%emt 00:00:47]} a5 {[%clk 00:07:55]} {[%emt 00:00:29]} 18. Nf3 {[%clk
00:11:32]} {[%emt 00:00:36]} Rxe1+ {[%clk 00:07:06]} {[%emt 00:00:54]} 19. Rxe1
{[%clk 00:11:33]} {[%emt 00:00:04]} Re8 {[%clk 00:07:09]} {[%emt 00:00:02]} 20.
Rxe8+ {[%clk 00:05:41]} {[%emt 00:05:57]} Qxe8 {[%clk 00:07:10]} {[%emt
00:00:04]} 21. Qd2 {[%clk 00:04:49]} {[%emt 00:00:57]} b6 {[%clk 00:05:45]}
{[%emt 00:01:30]} 22. h3 {[%clk 00:04:16]} {[%emt 00:00:38]} h6 {[%clk
00:05:37]} {[%emt 00:00:12]} 23. b4 {[%clk 00:03:37]} {[%emt 00:00:44]} axb4
{[%clk 00:05:03]} {[%emt 00:00:39]} 24. axb4 {[%clk 00:03:41]} {[%emt
00:00:02]} Qa4 {[%clk 00:04:59]} {[%emt 00:00:10]} 25. bxc5 {[%clk 00:03:42]}
{[%emt 00:00:03]} bxc5 {[%clk 00:05:02]} {[%emt 00:00:02]} 26. Ne5 {[%clk
00:03:38]} {[%emt 00:00:09]} Nd7 {[%clk 00:03:59]} {[%emt 00:01:08]} 27. Nxd7
{[%clk 00:02:51]} {[%emt 00:00:52]} Bxd7 {[%clk 00:03:55]} {[%emt 00:00:08]} 28.
Kh2 {[%clk 00:02:37]} {[%emt 00:00:19]} Bf5 {[%clk 00:03:48]} {[%emt 00:00:11]}
29. Qe2 {[%clk 00:02:38]} {[%emt 00:00:04]} Qd7 {[%clk 00:02:08]} {[%emt
00:01:46]} 30. g4 {[%clk 00:01:53]} {[%emt 00:00:50]} Qd6+ {[%clk 00:01:59]}
{[%emt 00:00:13]} 31. Kg1 {[%clk 00:01:48]} {[%emt 00:00:09]} Be6 {[%clk
00:01:53]} {[%emt 00:00:13]} 32. Qe4 {[%clk 00:01:33]} {[%emt 00:00:20]} g6
{[%clk 00:01:45]} {[%emt 00:00:13]} 33. f4 {[%clk 00:01:09]} {[%emt 00:00:30]}
f5 {[%clk 00:01:01]} {[%emt 00:00:49]} 34. gxf5 {[%clk 00:01:00]} {[%emt
00:00:13]} Bxf5 {[%clk 00:00:57]} {[%emt 00:00:09]} 35. Qe8+ {[%clk 00:01:04]}
{[%emt 00:00:01]} Kg7 {[%clk 00:00:56]} {[%emt 00:00:06]} 36. Bd5 {[%clk
00:00:58]} {[%emt 00:00:11]} Qf8 {[%clk 00:00:20]} {[%emt 00:00:41]} 37. Qe5+
{[%clk 00:00:42]} {[%emt 00:00:21]} Kh7 {[%clk 00:00:20]} {[%emt 00:00:06]} 38.
Qc7+ {[%clk 00:00:29]} {[%emt 00:00:18]} Kh8 {[%clk 00:00:22]} {[%emt
00:00:03]} 39. Qe5+ {[%clk 00:00:30]} {[%emt 00:00:02]} Qg7 {[%clk 00:00:11]}
{[%emt 00:00:18]} 40. Qe8+ {[%clk 00:00:25]} {[%emt 00:00:09]} Kh7 {[%clk
00:00:15]} {[%emt 00:00:01]} 41. Be4 {[%clk 00:00:23]} {[%emt 00:00:07]} Bxh3
{[%clk 00:00:13]} {[%emt 00:00:07]} 42. Qc6 {[%clk 00:00:19]} {[%emt 00:00:09]}
Bf5 {[%clk 00:00:10]} {[%emt 00:00:09]} 43. Qxc5 {[%clk 00:00:16]} {[%emt
00:00:07]} Bxe4 {[%clk 00:00:08]} {[%emt 00:00:07]} 44. dxe4 {[%clk 00:00:20]}
{[%emt 00:00:02]} d3 {[%clk 00:00:12]} 45. Qd5 {[%clk 00:00:18]} {[%emt
00:00:07]} Qa1+ {[%clk 00:00:14]} {[%emt 00:00:03]} 46. Kf2 {[%clk 00:00:14]}
{[%emt 00:00:09]} Qb2+ {[%clk 00:00:17]} {[%emt 00:00:02]} 47. Kg3 {[%clk
00:00:10]} {[%emt 00:00:09]} d2 {[%clk 00:00:12]} {[%emt 00:00:11]} 48. Qd7+
{[%clk 00:00:14]} {[%emt 00:00:01]} Kg8 {[%clk 00:00:15]} {[%emt 00:00:02]} 49.
Qd8+ {[%clk 00:00:18]} {[%emt 00:00:01]} Kf7 {[%clk 00:00:18]} {[%emt
00:00:02]} 50. Qd7+ {[%clk 00:00:21]} {[%emt 00:00:01]} 1/2-1/2

[Event "Open NK Rapid 2025"]
[Site "Helmond, Netherlands"]
[Date "2025.05.03"]
[Round "3.8"]
[White "Roebers, Eline"]
[Black "Husers, Yannic"]
[Result "1-0"]
[TimeControl "15+5"]
[WhiteFideId "1058401"]
[BlackFideId "1043587"]
[WhiteElo "2390"]
[BlackElo "2002"]

1. e4 {[%clk 00:15:08]} {[%emt 00:00:02]} e5 {[%clk 00:15:06]} {[%emt
00:00:03]} 2. Nf3 {[%clk 00:15:06]} {[%emt 00:00:08]} Nc6 {[%clk 00:15:07]}
{[%emt 00:00:04]} 3. Nc3 {[%clk 00:15:10]} Nf6 {[%clk 00:15:05]} {[%emt
00:00:06]} 4. a3 {[%clk 00:15:13]} {[%emt 00:00:02]} d6 {[%clk 00:14:31]}
{[%emt 00:00:40]} 5. d4 {[%clk 00:15:16]} {[%emt 00:00:02]} exd4 {[%clk
00:14:23]} {[%emt 00:00:12]} 6. Nxd4 {[%clk 00:15:21]} {[%emt 00:00:01]} Bd7
{[%clk 00:14:03]} {[%emt 00:00:26]} 7. Bf4 {[%clk 00:14:46]} {[%emt 00:00:40]}
Be7 {[%clk 00:13:45]} {[%emt 00:00:23]} 8. Qd2 {[%clk 00:14:39]} {[%emt
00:00:11]} O-O {[%clk 00:13:21]} {[%emt 00:00:28]} 9. O-O-O {[%clk 00:14:29]}
{[%emt 00:00:15]} Nh5 {[%clk 00:12:10]} {[%emt 00:01:16]} 10. Be3 {[%clk
00:14:32]} {[%emt 00:00:04]} g6 {[%clk 00:11:58]} {[%emt 00:00:16]} 11. Nd5
{[%clk 00:14:12]} {[%emt 00:00:25]} Ne5 {[%clk 00:11:13]} {[%emt 00:00:50]} 12.
h3 {[%clk 00:13:27]} {[%emt 00:00:50]} Ng7 {[%clk 00:11:07]} {[%emt 00:00:10]}
13. f4 {[%clk 00:13:13]} {[%emt 00:00:20]} Nc6 {[%clk 00:11:05]} {[%emt
00:00:07]} 14. g4 {[%clk 00:13:05]} {[%emt 00:00:13]} Ne6 {[%clk 00:10:48]}
{[%emt 00:00:23]} 15. Nf3 {[%clk 00:12:10]} {[%emt 00:00:58]} Nc5 {[%clk
00:10:25]} {[%emt 00:00:29]} 16. Bxc5 {[%clk 00:11:01]} {[%emt 00:01:14]} dxc5
{[%clk 00:10:24]} {[%emt 00:00:06]} 17. Nxe7+ {[%clk 00:11:04]} {[%emt
00:00:02]} Qxe7 {[%clk 00:10:20]} {[%emt 00:00:09]} 18. Qxd7 {[%clk 00:11:06]}
{[%emt 00:00:03]} Qxe4 {[%clk 00:10:09]} {[%emt 00:00:16]} 19. Bg2 {[%clk
00:09:46]} {[%emt 00:01:25]} Rad8 {[%clk 00:09:37]} {[%emt 00:00:37]} 20. Qxc7
{[%clk 00:09:47]} {[%emt 00:00:04]} Qe3+ {[%clk 00:09:32]} {[%emt 00:00:10]} 21.
Kb1 {[%clk 00:09:46]} {[%emt 00:00:06]} Qf2 {[%clk 00:09:20]} {[%emt 00:00:17]}
22. Rxd8 {[%clk 00:08:02]} {[%emt 00:01:50]} Rxd8 {[%clk 00:09:19]} {[%emt
00:00:05]} 23. Ng5 {[%clk 00:07:51]} {[%emt 00:00:15]} Rf8 {[%clk 00:08:11]}
{[%emt 00:01:14]} 24. Bd5 {[%clk 00:07:51]} {[%emt 00:00:04]} Nd8 {[%clk
00:08:10]} {[%emt 00:00:06]} 25. Qe5 {[%clk 00:07:25]} {[%emt 00:00:32]} b5
{[%clk 00:07:30]} {[%emt 00:00:45]} 26. Ne4 {[%clk 00:07:26]} {[%emt 00:00:04]}
Qd4 {[%clk 00:07:17]} {[%emt 00:00:19]} 27. Qxd4 {[%clk 00:07:28]} {[%emt
00:00:02]} cxd4 {[%clk 00:07:17]} {[%emt 00:00:05]} 28. Rd1 {[%clk 00:07:32]}
{[%emt 00:00:01]} Kg7 {[%clk 00:06:57]} {[%emt 00:00:25]} 29. Rxd4 {[%clk
00:07:35]} {[%emt 00:00:02]} Re8 {[%clk 00:07:01]} 30. b3 {[%clk 00:07:32]}
{[%emt 00:00:08]} a5 {[%clk 00:07:01]} {[%emt 00:00:06]} 31. b4 {[%clk
00:07:30]} {[%emt 00:00:06]} a4 {[%clk 00:07:03]} {[%emt 00:00:03]} 32. Kb2
{[%clk 00:07:32]} {[%emt 00:00:03]} Re7 {[%clk 00:06:55]} {[%emt 00:00:13]} 33.
c4 {[%clk 00:07:28]} {[%emt 00:00:09]} bxc4 {[%clk 00:06:55]} {[%emt 00:00:05]}
34. Rxc4 {[%clk 00:07:32]} {[%emt 00:00:02]} Rd7 {[%clk 00:06:55]} {[%emt
00:00:04]} 35. Nc3 {[%clk 00:07:36]} Rd6 {[%clk 00:06:53]} {[%emt 00:00:06]} 36.
b5 {[%clk 00:07:40]} {[%emt 00:00:03]} Kf6 {[%clk 00:06:31]} {[%emt 00:00:26]}
37. Rxa4 {[%clk 00:07:42]} {[%emt 00:00:03]} Ne6 {[%clk 00:06:30]} {[%emt
00:00:06]} 38. Ne4+ {[%clk 00:07:46]} {[%emt 00:00:02]} 1-0

[Event "Open NK Rapid 2025"]
[Site "Helmond, Netherlands"]
[Date "2025.05.03"]
[Round "3.9"]
[White "Klein, Ron"]
[Black "Cernov, Vadim"]
[Result "0-1"]
[TimeControl "15+5"]
[WhiteFideId "1014668"]
[BlackFideId "1210629"]
[WhiteElo "2014"]
[BlackElo "2320"]

1. d4 {[%clk 00:15:06]} {[%emt 00:00:02]} Nf6 {[%clk 00:15:09]} {[%emt
00:00:01]} 2. Nf3 {[%clk 00:15:08]} {[%emt 00:00:04]} g6 {[%clk 00:15:07]}
{[%emt 00:00:07]} 3. Bg5 {[%clk 00:15:06]} {[%emt 00:00:06]} Bg7 {[%clk
00:15:11]} {[%emt 00:00:02]} 4. e3 {[%clk 00:14:55]} {[%emt 00:00:16]} O-O
{[%clk 00:15:09]} {[%emt 00:00:07]} 5. Be2 {[%clk 00:14:51]} {[%emt 00:00:09]}
d6 {[%clk 00:14:55]} {[%emt 00:00:19]} 6. O-O {[%clk 00:14:41]} {[%emt
00:00:15]} h6 {[%clk 00:14:57]} {[%emt 00:00:03]} 7. Bh4 {[%clk 00:14:33]}
{[%emt 00:00:13]} g5 {[%clk 00:14:42]} {[%emt 00:00:20]} 8. Bg3 {[%clk
00:14:35]} {[%emt 00:00:02]} Nh5 {[%clk 00:14:43]} {[%emt 00:00:05]} 9. c4
{[%clk 00:14:23]} {[%emt 00:00:18]} Nd7 {[%clk 00:14:41]} {[%emt 00:00:07]} 10.
Nc3 {[%clk 00:14:17]} {[%emt 00:00:10]} Ndf6 {[%clk 00:14:44]} {[%emt
00:00:02]} 11. Qc2 {[%clk 00:13:37]} {[%emt 00:00:44]} e6 {[%clk 00:14:37]}
{[%emt 00:00:13]} 12. Rab1 {[%clk 00:13:26]} {[%emt 00:00:15]} Qe7 {[%clk
00:14:31]} {[%emt 00:00:12]} 13. b4 {[%clk 00:12:22]} {[%emt 00:01:09]} b6
{[%clk 00:13:49]} {[%emt 00:00:47]} 14. a4 {[%clk 00:11:21]} {[%emt 00:01:06]}
a5 {[%clk 00:13:39]} {[%emt 00:00:16]} 15. bxa5 {[%clk 00:10:59]} {[%emt
00:00:26]} Rxa5 {[%clk 00:13:35]} {[%emt 00:00:09]} 16. Nd2 {[%clk 00:10:28]}
{[%emt 00:00:36]} Nxg3 {[%clk 00:12:41]} {[%emt 00:00:59]} 17. hxg3 {[%clk
00:10:30]} {[%emt 00:00:02]} Bb7 {[%clk 00:12:04]} {[%emt 00:00:43]} 18. Rb5
{[%clk 00:09:39]} {[%emt 00:00:57]} Rfa8 {[%clk 00:11:57]} {[%emt 00:00:11]} 19.
Rfb1 {[%clk 00:09:12]} {[%emt 00:00:32]} Nd7 {[%clk 00:11:36]} {[%emt
00:00:27]} 20. Bf3 {[%clk 00:08:46]} {[%emt 00:00:31]} Bxf3 {[%clk 00:11:24]}
{[%emt 00:00:16]} 21. Nxf3 {[%clk 00:08:43]} {[%emt 00:00:08]} f5 {[%clk
00:09:20]} {[%emt 00:02:09]} 22. Rxa5 {[%clk 00:08:02]} {[%emt 00:00:46]} Rxa5
{[%clk 00:09:23]} {[%emt 00:00:02]} 23. Nb5 {[%clk 00:06:30]} {[%emt 00:01:37]}
Nf6 {[%clk 00:08:18]} {[%emt 00:01:11]} 24. Nd2 {[%clk 00:06:05]} {[%emt
00:00:30]} Qf7 {[%clk 00:07:29]} {[%emt 00:00:53]} 25. c5 {[%clk 00:05:10]}
{[%emt 00:01:00]} dxc5 {[%clk 00:07:33]} {[%emt 00:00:02]} 26. dxc5 {[%clk
00:05:12]} {[%emt 00:00:02]} Nd5 {[%clk 00:06:49]} {[%emt 00:00:49]} 27. cxb6
{[%clk 00:04:58]} {[%emt 00:00:19]} cxb6 {[%clk 00:06:42]} {[%emt 00:00:11]} 28.
Qc4 {[%clk 00:04:00]} {[%emt 00:01:04]} Ra8 {[%clk 00:05:57]} {[%emt 00:00:51]}
29. e4 {[%clk 00:03:38]} {[%emt 00:00:26]} fxe4 {[%clk 00:05:10]} {[%emt
00:00:52]} 30. Nxe4 {[%clk 00:02:58]} {[%emt 00:00:45]} Rf8 {[%clk 00:04:26]}
{[%emt 00:00:50]} 31. Nbd6 {[%clk 00:02:12]} {[%emt 00:00:50]} Qg6 {[%clk
00:04:13]} {[%emt 00:00:18]} 32. Rd1 {[%clk 00:01:42]} {[%emt 00:00:35]} Kh7
{[%clk 00:03:48]} {[%emt 00:00:30]} 33. Qc6 {[%clk 00:01:10]} {[%emt 00:00:35]}
g4 {[%clk 00:03:16]} {[%emt 00:00:40]} 34. Qc2 {[%clk 00:00:31]} {[%emt
00:00:44]} Kh8 {[%clk 00:02:09]} {[%emt 00:01:12]} 35. Qc6 {[%clk 00:00:17]}
{[%emt 00:00:18]} h5 {[%clk 00:01:58]} {[%emt 00:00:16]} 36. Qc1 {[%clk
00:00:06]} {[%emt 00:00:15]} Bh6 {[%clk 00:01:39]} {[%emt 00:00:25]} 37. Qb2+
{[%clk 00:00:09]} {[%emt 00:00:01]} Qg7 {[%clk 00:01:33]} {[%emt 00:00:11]} 38.
Qxg7+ {[%clk 00:00:09]} {[%emt 00:00:05]} Kxg7 {[%clk 00:01:37]} {[%emt
00:00:02]} 0-1

[Event "Open NK Rapid 2025"]
[Site "Helmond, Netherlands"]
[Date "2025.05.03"]
[Round "3.10"]
[White "Jansz, Wilfred"]
[Black "Cernov, Henrik"]
[Result "1/2-1/2"]
[TimeControl "15+5"]
[WhiteFideId "40107353"]
[BlackFideId "16258312"]
[WhiteElo "1996"]
[BlackElo "2291"]

1. e4 {[%clk 00:15:07]} {[%emt 00:00:02]} c5 {[%clk 00:15:09]} {[%emt
00:00:01]} 2. Nf3 {[%clk 00:15:11]} {[%emt 00:00:02]} e6 {[%clk 00:15:13]}
{[%emt 00:00:01]} 3. d4 {[%clk 00:15:14]} {[%emt 00:00:02]} cxd4 {[%clk
00:15:17]} {[%emt 00:00:01]} 4. Nxd4 {[%clk 00:15:17]} {[%emt 00:00:01]} Nf6
{[%clk 00:15:21]} {[%emt 00:00:01]} 5. Nc3 {[%clk 00:15:20]} {[%emt 00:00:02]}
Nc6 {[%clk 00:15:25]} {[%emt 00:00:01]} 6. Be3 {[%clk 00:15:12]} {[%emt
00:00:13]} Bb4 {[%clk 00:15:27]} {[%emt 00:00:03]} 7. Bd3 {[%clk 00:15:00]}
{[%emt 00:00:17]} d5 {[%clk 00:15:28]} {[%emt 00:00:05]} 8. O-O {[%clk
00:13:58]} {[%emt 00:01:07]} O-O {[%clk 00:13:41]} {[%emt 00:01:52]} 9. Nxc6
{[%clk 00:13:00]} {[%emt 00:01:03]} bxc6 {[%clk 00:13:45]} 10. e5 {[%clk
00:12:17]} {[%emt 00:00:48]} Nd7 {[%clk 00:13:45]} {[%emt 00:00:05]} 11. Bf4
{[%clk 00:12:16]} {[%emt 00:00:05]} f6 {[%clk 00:11:23]} {[%emt 00:02:27]} 12.
Qh5 {[%clk 00:11:37]} {[%emt 00:00:44]} f5 {[%clk 00:11:23]} {[%emt 00:00:06]}
13. g4 {[%clk 00:10:44]} {[%emt 00:00:57]} g6 {[%clk 00:10:58]} {[%emt
00:00:30]} 14. Qh6 {[%clk 00:10:13]} {[%emt 00:00:36]} Qe7 {[%clk 00:10:25]}
{[%emt 00:00:38]} 15. Ne2 {[%clk 00:07:31]} {[%emt 00:02:48]} c5 {[%clk
00:09:58]} {[%emt 00:00:32]} 16. c3 {[%clk 00:07:28]} {[%emt 00:00:08]} Ba5
{[%clk 00:10:02]} {[%emt 00:00:02]} 17. Bg5 {[%clk 00:04:56]} {[%emt 00:02:36]}
Qg7 {[%clk 00:09:29]} {[%emt 00:00:38]} 18. gxf5 {[%clk 00:04:58]} {[%emt
00:00:02]} gxf5 {[%clk 00:08:51]} {[%emt 00:00:43]} 19. f4 {[%clk 00:04:16]}
{[%emt 00:00:48]} Bb6 {[%clk 00:06:31]} {[%emt 00:02:26]} 20. Kf2 {[%clk
00:03:03]} {[%emt 00:01:17]} c4+ {[%clk 00:06:09]} {[%emt 00:00:27]} 21. Nd4
{[%clk 00:03:06]} {[%emt 00:00:02]} cxd3 {[%clk 00:05:20]} {[%emt 00:00:54]} 22.
Qxe6+ {[%clk 00:03:00]} {[%emt 00:00:10]} Qf7 {[%clk 00:04:00]} {[%emt
00:01:25]} 23. Qxf7+ {[%clk 00:02:42]} {[%emt 00:00:24]} Rxf7 {[%clk 00:04:05]}
24. e6 {[%clk 00:02:43]} {[%emt 00:00:04]} Rg7 {[%clk 00:04:09]} 25. exd7
{[%clk 00:02:40]} {[%emt 00:00:07]} Bxd7 {[%clk 00:04:14]} {[%emt 00:00:01]} 26.
Ke3 {[%clk 00:02:34]} {[%emt 00:00:11]} Bb5 {[%clk 00:03:49]} {[%emt 00:00:30]}
27. a4 {[%clk 00:02:36]} {[%emt 00:00:03]} Bc4 {[%clk 00:03:36]} {[%emt
00:00:18]} 28. Bf6 {[%clk 00:02:23]} {[%emt 00:00:18]} Re8+ {[%clk 00:03:01]}
{[%emt 00:00:40]} 29. Be5 {[%clk 00:02:27]} Rg6 {[%clk 00:02:45]} {[%emt
00:00:22]} 30. Rg1 {[%clk 00:02:30]} {[%emt 00:00:02]} Kf7 {[%clk 00:02:35]}
{[%emt 00:00:14]} 31. Kd2 {[%clk 00:02:15]} {[%emt 00:00:20]} Reg8 {[%clk
00:01:57]} {[%emt 00:00:43]} 32. Rxg6 {[%clk 00:01:10]} {[%emt 00:01:10]} Rxg6
{[%clk 00:02:01]} 33. a5 {[%clk 00:00:54]} {[%emt 00:00:21]} Rg2+ {[%clk
00:01:53]} {[%emt 00:00:13]} 34. Ke3 {[%clk 00:00:55]} {[%emt 00:00:04]} Bxd4+
{[%clk 00:01:51]} {[%emt 00:00:07]} 35. Bxd4 {[%clk 00:00:44]} {[%emt
00:00:16]} a6 {[%clk 00:01:47]} {[%emt 00:00:09]} 36. b3 {[%clk 00:00:27]}
{[%emt 00:00:22]} Bxb3 {[%clk 00:00:52]} {[%emt 00:01:00]} 37. Kxd3 {[%clk
00:00:30]} {[%emt 00:00:01]} Bc4+ {[%clk 00:00:57]} 38. Ke3 {[%clk 00:00:34]}
{[%emt 00:00:03]} Rxh2 {[%clk 00:00:45]} {[%emt 00:00:17]} 39. Rg1 {[%clk
00:00:38]} Re2+ {[%clk 00:00:46]} {[%emt 00:00:04]} 40. Kf3 {[%clk 00:00:42]}
{[%emt 00:00:01]} Re7 {[%clk 00:00:40]} {[%emt 00:00:11]} 41. Rg7+ {[%clk
00:00:46]} Ke8 {[%clk 00:00:45]} 42. Rg8+ {[%clk 00:00:49]} {[%emt 00:00:02]}
Kd7 {[%clk 00:00:25]} {[%emt 00:00:25]} 43. Rf8 {[%clk 00:00:52]} {[%emt
00:00:02]} Bd3 {[%clk 00:00:27]} {[%emt 00:00:02]} 44. Rf6 {[%clk 00:00:53]}
{[%emt 00:00:05]} Re6 {[%clk 00:00:21]} {[%emt 00:00:11]} 45. Rf7+ {[%clk
00:00:53]} {[%emt 00:00:05]} Re7 {[%clk 00:00:21]} {[%emt 00:00:05]} 46. Rf6
{[%clk 00:00:52]} {[%emt 00:00:06]} Be4+ {[%clk 00:00:18]} {[%emt 00:00:08]} 47.
Ke3 {[%clk 00:00:48]} {[%emt 00:00:09]} Re6 {[%clk 00:00:18]} {[%emt 00:00:06]}
48. Rf7+ {[%clk 00:00:49]} {[%emt 00:00:03]} Re7 {[%clk 00:00:12]} {[%emt
00:00:11]} 49. Rf6 {[%emt 00:00:02]} Re6 {[%clk 00:00:08]} {[%emt 00:00:07]} 50.
Rf7+ {[%clk 00:00:57]} {[%emt 00:00:02]} Re7 {[%clk 00:00:08]} {[%emt
00:00:05]} 1/2-1/2